[Event "UKR-chT 2019"]
[Site "Chornomorsk"]
[Date "2019.05.20"]
[Round "1.2"]
[White "Bondarets, Vadim"]
[Black "Sivuk, Vitaly"]
[Result "1-0"]
[ECO "A80"]
[WhiteElo "2236"]
[BlackElo "2543"]
[Annotator "RC"]
[PlyCount "103"]
[EventDate "2019.05.20"]
[EventCountry "UKR"]
[SourceTitle "playchess.com"]
[Source "ChessBase"]
[SourceQuality "1"]
[TimeControl "40/5400+30:1800+30"]

1. d4 {[%emt 0:00:00]} f5 {[%emt 0:00:00]} 2. Nf3 {[%emt 0:00:27]} Nf6 {[%emt 0:00:13]} 3. g3 {[%emt 0:00:16]} g6 {[%emt 0:00:10]} 4. Bg2 {[%emt 0:00:06]} Bg7 {[%emt 0:00:01]} 5. O-O {[%emt 0:00:15]} O-O {[%emt 0:00:06]} 6. b3 {[%emt 0:02:17]} c6 {[%emt 0:05:13]} 7. Bb2 {[%emt 0:00:32]} d5 {[%emt 0:08:31]} 8. Nbd2 {[%emt 0:01:14]} Nbd7 {[%emt 0:05:27]} 9. c4 {[%emt 0:04:59]} e6 {[%emt 0:13:17]} 10. Qc2 {[%emt 0:00:47]} Ne4 {[%emt 0:05:17]} 11. e3 {[%emt 0:02:41]} g5 {[%emt 0:06:17]} 12. Rad1 {[%emt 0:02:11]} g4 {[%emt 0:03:42]} 13. Ne1 {[%emt 0:00:59]} Qg5 {[%emt 0:01:19]} 14. Ba3 {[%emt 0:04:19]} Rf7 {[%emt 0:00:28]} 15. Nd3 {[%emt 0:00:37]} h5 {[%emt 0:03:06]} 16. Nf4 {[%emt 0:01:17]} Ndf6 {[%emt 0:02:00]} 17. f3 {[%emt 0:07:02]} Nxd2 {[%emt 0:00:18]} 18. Qxd2 {[%emt 0:00:11]} gxf3 {[%emt 0:05:02]} 19. Bxf3 {[%emt 0:00:18]} Bd7 {[%emt 0:05:11]} 20. Qe2 {[%emt 0:02:39]} Bh6 {[%emt 0:07:47]} 21. Kh1 {[%emt 0:01:04]} Kh8 {[%emt 0:01:56]} 22. Bd6 {[%emt 0:02:27]} Kh7 {[%emt 0:09:06]} 23. Rde1 {[%emt 0:03:51]} Ne4 {[%emt 0:05:18]} 24. Bxe4 {[%emt 0:01:53]} dxe4 {[%emt 0:02:31]} 25. Nxh5 {[%emt 0:01:36]} Rg8 {[%emt 0:00:59]} 26. Rf4 {[%emt 0:02:56]} Kg6 {[%emt 0:01:54]} 27. Rh4 {[%emt 0:00:24]} Rh7 {[%emt 0:00:41]} 28. Bf4 {[%emt 0:07:36]} Qe7 {[%emt 0:00:22]} 29. Bxh6 {[%emt 0:00:50]} Rxh6 {[%emt 0:00:08]} 30. Nf4+ {[%emt 0:00:07]} Kh7 {[%emt 0:00:39]} 31. Rxh6+ Kxh6 32. Qh5+ {[%emt 0:01:04]} Kg7 {[%emt 0:00:01]} 33. g4 {[%emt 0:00:21]} Be8 {[%emt 0:01:54]} 34. Qh3 {[%emt 0:00:12]} Rh8 {[%emt 0:03:44]} 35. Qg2 {[%emt 0:04:15]} Kf8 {[%emt 0:00:27]} 36. gxf5 {[%emt 0:02:01]} exf5 {[%emt 0:00:21]} 37. Rg1 {[%emt 0:00:09]} Qf6 {[%emt 0:01:44]} 38. Qg5 {[%emt 0:00:51]} Ke7 {[%emt 0:01:16]} 39. Qg7+ {[%emt 0:01:12]} Qxg7 {[%emt 0:00:15]} 40. Rxg7+ {[%emt 0:00:00]} Kf6 {[%emt 0:00:00]} 41. Rxb7 {[%emt 0:00:37]} Bh5 {[%emt 0:04:40]} 42. Rc7 {[%emt 0:02:03]} Bd1 {[%emt 0:15:39]} 43. Rxc6+ {[%emt 0:02:18]} Kf7 {[%emt 0:00:35]} 44. Kg1 {[%emt 0:00:54]} a5 {[%emt 0:01:07]} 45. Rc5 {[%emt 0:01:37]} Kf6 {[%emt 0:00:36]} 46. Rxa5 {[%emt 0:00:27]} Kg5 {[%emt 0:04:37]} 47. Ra6 {[%emt 0:01:34]} Kg4 {[%emt 0:00:32]} 48. Rg6+ {[%emt 0:00:14]} Kh4 {[%emt 0:00:01]} 49. d5 {[%emt 0:02:53]} Ra8 {[%emt 0:02:28]} 50. Rg2 {[%emt 0:00:47]} Bxb3 {[%emt 0:00:22]} 51. Ng6+ {[%emt 0:00:06]} Kh5 {[%emt 0:00:01]} 52. axb3 {[%emt 0:00:20]} 1-0

[Event "UKR-chT 2019"]
[Site "Chornomorsk"]
[Date "2019.05.20"]
[Round "1.4"]
[White "Kamnev, Alexandr"]
[Black "Kovalev, Denis"]
[Result "1-0"]
[ECO "A05"]
[WhiteElo "1868"]
[BlackElo "2496"]
[Annotator "RC"]
[PlyCount "79"]
[EventDate "2019.05.20"]
[EventCountry "UKR"]
[SourceTitle "playchess.com"]
[Source "ChessBase"]
[SourceQuality "1"]
[TimeControl "40/5400+30:1800+30"]

1. Nf3 {[%emt 0:00:00]} Nf6 {[%emt 0:00:00]} 2. c4 {[%emt 0:00:00]} d6 {[%emt 0:00:36]} 3. g3 {[%emt 0:00:44]} e5 {[%emt 0:01:05]} 4. Bg2 {[%emt 0:00:29]} Be7 {[%emt 0:00:54]} 5. Nc3 {[%emt 0:00:15]} O-O {[%emt 0:01:18]} 6. O-O {[%emt 0:00:22]} Nbd7 {[%emt 0:00:52]} 7. Rb1 {[%emt 0:00:57]} a5 {[%emt 0:01:34]} 8. d4 {[%emt 0:03:15]} Re8 {[%emt 0:05:31]} 9. b3 {[%emt 0:01:25]} c6 {[%emt 0:06:31]} 10. e3 {[%emt 0:02:11]} e4 {[%emt 0:12:09]} 11. Nd2 {[%emt 0:12:37]} d5 {[%emt 0:00:18]} 12. a3 {[%emt 0:02:52]} Nf8 {[%emt 0:05:01]} 13. f3 {[%emt 0:01:48]} exf3 {[%emt 0:04:33]} 14. Qxf3 {[%emt 0:00:16]} Bg4 {[%emt 0:02:42]} 15. Qf2 {[%emt 0:00:21]} Bh5 {[%emt 0:11:48]} 16. h3 {[%emt 0:08:51]} Bg6 {[%emt 0:11:07]} 17. Ra1 {[%emt 0:01:22]} Bd3 {[%emt 0:08:14]} 18. Re1 {[%emt 0:03:14]} Bd6 {[%emt 0:03:57]} 19. cxd5 {[%emt 0:02:09]} Qc7 {[%emt 0:02:32]} 20. Nf1 {[%emt 0:04:26]} Bxf1 {[%emt 0:07:03]} 21. Rxf1 {[%emt 0:01:00]} Bxg3 {[%emt 0:00:18]} 22. Qf3 {[%emt 0:08:04]} Ng6 {[%emt 0:02:33]} 23. e4 {[%emt 0:00:58]} Nh4 {[%emt 0:00:53]} 24. Qd3 {[%emt 0:00:12]} Nh5 {[%emt 0:05:45]} 25. e5 {[%emt 0:03:26]} f6 {[%emt 0:03:40]} 26. Ne4 {[%emt 0:06:29]} Bxe5 {[%emt 0:01:21]} 27. dxe5 {[%emt 0:00:12]} Qxe5 {[%emt 0:00:08]} 28. Nc3 {[%emt 0:00:52]} Ng3 {[%emt 0:00:52]} 29. Bf4 {[%emt 0:01:38]} Qxc3 {[%emt 0:00:22]} 30. Qxg3 {[%emt 0:00:11]} Qd4+ {[%emt 0:00:37]} 31. Qf2 {[%emt 0:01:13]} Qxf2+ {[%emt 0:00:42]} 32. Rxf2 {[%emt 0:00:10]} Nxg2 {[%emt 0:00:23]} 33. Kxg2 {[%emt 0:00:43]} cxd5 {[%emt 0:00:08]} 34. Rd1 {[%emt 0:04:40]} a4 {[%emt 0:00:41]} 35. b4 {[%emt 0:00:10]} Rad8 {[%emt 0:00:21]} 36. b5 {[%emt 0:09:00]} Re4 {[%emt 0:00:49]} 37. b6 {[%emt 0:00:18]} g5 {[%emt 0:00:40]} 38. Bc7 {[%emt 0:00:09]} Rd7 {[%emt 0:00:30]} 39. Rxf6 {[%emt 0:00:06]} d4 {[%emt 0:00:28]} 40. Rd6 {[%emt 0:00:00]} 1-0

[Event "UKR-chT 2019"]
[Site "Chornomorsk"]
[Date "2019.05.20"]
[Round "1.5"]
[White "Mats, Diana"]
[Black "Maximov, Dmitry"]
[Result "0-1"]
[ECO "B50"]
[WhiteElo "2056"]
[BlackElo "2486"]
[Annotator "ChessBase"]
[PlyCount "82"]
[EventDate "2019.05.20"]
[EventCountry "UKR"]
[SourceTitle "playchess.com"]
[Source "ChessBase"]
[SourceQuality "1"]
[TimeControl "40/5400+30:1800+30"]

1. e4 {[%emt 0:00:00]} c5 {[%emt 0:00:00]} 2. Nf3 {[%emt 0:00:24]} d6 {[%emt 0:00:00]} 3. c3 {[%emt 0:00:52]} Nf6 {[%emt 0:00:00]} 4. h3 {[%emt 0:00:57]} g6 {[%emt 0:02:24]} 5. Bd3 {[%emt 0:00:30]} Bg7 {[%emt 0:00:48]} 6. Bc2 {[%emt 0:00:46]} O-O {[%emt 0:01:03]} 7. d4 {[%emt 0:01:27]} cxd4 {[%emt 0:07:08]} 8. cxd4 {[%emt 0:00:20]} b5 {[%emt 0:01:57]} 9. O-O {[%emt 0:03:47]} Bb7 {[%emt 0:01:50]} 10. Re1 {[%emt 0:04:28]} Nbd7 {[%emt 0:05:27]} 11. a3 {[%emt 0:06:10]} e5 {[%emt 0:07:28]} 12. Nc3 {[%emt 0:10:32]} a6 {[%emt 0:06:42]} 13. dxe5 {[%emt 0:15:13]} dxe5 {[%emt 0:00:53]} 14. Bg5 {[%emt 0:02:51]} Qb8 {[%emt 0:08:52]} 15. Qe2 {[%emt 0:08:33]} h6 {[%emt 0:20:46]} 16. Be3 {[%emt 0:03:32]} Bc6 {[%emt 0:00:54]} 17. Rad1 {[%emt 0:05:24]} b4 {[%emt 0:01:24]} 18. Nd5 {[%emt 0:04:00]} Bxd5 {[%emt 0:04:44]} 19. exd5 {[%emt 0:01:51]} b3 {[%emt 0:02:36]} 20. Bb1 {[%emt 0:01:57]} Re8 {[%emt 0:00:26]} 21. Qd2 {[%emt 0:04:18]} Kh7 {[%emt 0:00:14]} 22. d6 {[%emt 0:01:08]} Re6 {[%emt 0:01:44]} 23. Qb4 {[%emt 0:11:01]} Qxb4 {[%emt 0:02:07]} 24. axb4 {[%emt 0:00:01]} Rb8 {[%emt 0:00:11]} 25. Bd2 {[%emt 0:03:10]} Rxd6 {[%emt 0:08:17]} 26. Bc3 {[%emt 0:00:16]} Re6 {[%emt 0:00:23]} 27. Bd3 {[%emt 0:04:18]} Rc8 {[%emt 0:07:09]} 28. Nxe5 {[%emt 0:01:09]} Rxc3 {[%emt 0:00:11]} 29. bxc3 {[%emt 0:01:58]} Nxe5 {[%emt 0:00:20]} 30. Bf1 {[%emt 0:02:54]} b2 {[%emt 0:04:00]} 31. f4 {[%emt 0:00:38]} Nc6 {[%emt 0:00:44]} 32. Rxe6 {[%emt 0:00:03]} fxe6 {[%emt 0:00:03]} 33. Rb1 {[%emt 0:00:14]} Nd5 {[%emt 0:00:23]} 34. Rxb2 {[%emt 0:01:32]} Bxc3 {[%emt 0:00:07]} 35. Rb3 {[%emt 0:00:15]} Bd4+ {[%emt 0:01:53]} 36. Kh2 {[%emt 0:00:29]} Ndxb4 {[%emt 0:00:20]} 37. Ra3 {[%emt 0:00:47]} a5 {[%emt 0:00:12]} 38. Bc4 {[%emt 0:00:02]} e5 {[%emt 0:01:06]} 39. Kg3 {[%emt 0:00:51]} e4 {[%emt 0:02:32]} 40. Be6 {[%emt 0:00:00]} e3 {[%emt 0:00:00]} 41. Kf3 {[%emt 0:03:21]} Bc5 {[%emt 0:02:02]} 0-1

[Event "UKR-chT 2019"]
[Site "Chornomorsk"]
[Date "2019.05.21"]
[Round "2.4"]
[White "Tarasenko, Vladislav"]
[Black "Osmak, Iulija"]
[Result "0-1"]
[ECO "C03"]
[WhiteElo "2027"]
[BlackElo "2387"]
[Annotator "NA RC"]
[PlyCount "62"]
[EventDate "2019.05.20"]
[EventCountry "UKR"]
[SourceTitle "playchess.com"]
[Source "ChessBase"]
[SourceQuality "1"]
[TimeControl "40/5400+30:1800+30"]

1. e4 {[%emt 0:00:00]} e6 {[%emt 0:00:00]} 2. d4 {[%emt 0:00:31]} d5 {[%emt 0:00:00]} 3. Nd2 {[%emt 0:00:03]} Be7 {[%emt 0:00:00]} 4. Bd3 {[%emt 0:01:51]} c5 {[%emt 0:00:54]} 5. dxc5 {[%emt 0:02:23]} Nf6 {[%emt 0:00:41]} 6. Ngf3 {[%emt 0:01:56]} dxe4 {[%emt 0:00:41]} 7. Nxe4 {[%emt 0:00:04]} Nxe4 {[%emt 0:00:15]} 8. Bxe4 {[%emt 0:00:03]} Qxd1+ {[%emt 0:00:12]} 9. Kxd1 {[%emt 0:00:02]} Bxc5 {[%emt 0:00:08]} 10. Ke2 {[%emt 0:00:05]} Nd7 {[%emt 0:00:19] C03: French Tarrasch: Unusual Black 3rd moves} 11. Rd1 {[%emt 0:15:36]} (11. Be3 Bxe3 12. Kxe3 Nc5 13. Rhd1 Ke7 14. Bd3 f6 15. Bc4 Bd7 16. b4 Na4 17. Rxd7+ Kxd7 18. Bb5+ {½-½ (52) Svidler,P (2753)-Yu,Y (2759) Shenzhen 2018}) 11... Nf6 {[%emt 0:07:13]} 12. Bg5 {[%emt 0:01:06]} Bd7 {[%emt 0:05:42]} 13. Bxf6 {[%emt 0:03:41]} gxf6 {[%emt 0:01:29]} 14. Nd4 $146 {[%emt 0:15:16]} ({Predecessor:} 14. Nd2 O-O-O 15. a4 f5 16. Bf3 e5 17. Bd5 Bxa4 18. Bxb7+ Kxb7 19. Rxa4 {½-½ (43) Vigo Allepuz,D (2059)-Sowray,P (2325) Barcelona 2014}) 14... O-O-O {[%emt 0:06:36]} 15. a4 {[%emt 0:11:59]} Kb8 {[%emt 0:15:13]} 16. Nb3 {[%emt 0:05:02]} Be7 {[%emt 0:00:59]} 17. Na5 {[%emt 0:04:38]} Bc8 {[%emt 0:00:59]} 18. c3 {[%emt 0:03:59]} h5 {[%emt 0:04:02]} 19. b4 {[%emt 0:12:39]} f5 {[%emt 0:03:08]} 20. Bf3 {[%emt 0:00:09]} h4 $11 {[%emt 0:03:30]} 21. Rab1 {[%emt 0:03:06]} Kc7 {[%emt 0:03:54]} 22. Nc4 {[%emt 0:02:38]} Bf6 {[%emt 0:02:04]} 23. b5 {[%emt 0:03:22]} Rxd1 {[%emt 0:13:54]} 24. Rxd1 {[%emt 0:00:33]} Bxc3 {[%emt 0:04:48]} 25. Rc1 {[%emt 0:02:45]} Bb4 {[%emt 0:01:10]} 26. Ne5+ {[%emt 0:05:36]} Kb8 {[%emt 0:00:45]} 27. Nxf7 {[%emt 0:01:37]} Rh7 {[%emt 0:00:30]} 28. Ne5 {[%emt 0:00:24]} Bd6 {[%emt 0:00:19]} 29. Nc4 {[%emt 0:01:46]} Bxh2 {[%emt 0:02:18]} 30. b6 {[%emt 0:00:48]} Bf4 {[%emt 0:11:13]} 31. Rb1 {[%emt 0:00:47]} a6 {[%emt 0:00:47]} 0-1

[Event "UKR-chT 2019"]
[Site "Chornomorsk"]
[Date "2019.05.22"]
[Round "3.3"]
[White "Sydoryka, Vladyslav"]
[Black "Sivuk, Vitaly"]
[Result "0-1"]
[ECO "A10"]
[WhiteElo "2269"]
[BlackElo "2543"]
[Annotator "RC"]
[PlyCount "88"]
[EventDate "2019.05.20"]
[EventCountry "UKR"]
[SourceTitle "playchess.com"]
[Source "ChessBase"]
[SourceQuality "1"]
[TimeControl "40/5400+30:1800+30"]

1. c4 {[%emt 0:00:00]} b6 {[%emt 0:00:00]} 2. e4 {[%emt 0:00:00]} Bb7 {[%emt 0:00:00]} 3. Nc3 {[%emt 0:00:00]} e5 {[%emt 0:00:07]} 4. Nf3 {[%emt 0:03:42]} Nc6 {[%emt 0:00:14]} 5. Be2 {[%emt 0:10:11]} Bc5 {[%emt 0:03:38]} 6. Nxe5 {[%emt 0:11:44]} Nxe5 {[%emt 0:01:02]} 7. d4 {[%emt 0:00:32]} Bd6 {[%emt 0:00:07]} 8. dxe5 {[%emt 0:00:07]} Bxe5 {[%emt 0:00:05]} 9. O-O {[%emt 0:18:41]} Nf6 {[%emt 0:06:51]} 10. Nd5 {[%emt 0:09:03]} c5 {[%emt 0:13:04]} 11. Qc2 {[%emt 0:09:25]} Nxd5 {[%emt 0:11:19]} 12. exd5 {[%emt 0:03:49]} Qf6 {[%emt 0:05:33]} 13. Rb1 {[%emt 0:01:05]} O-O {[%emt 0:00:16]} 14. Bd3 {[%emt 0:02:57]} h6 {[%emt 0:02:12]} 15. g3 {[%emt 0:01:19]} d6 {[%emt 0:05:34]} 16. Bh7+ {[%emt 0:01:56]} Kh8 {[%emt 0:00:09]} 17. Bf5 {[%emt 0:00:04]} g6 {[%emt 0:07:42]} 18. Bh3 {[%emt 0:00:03]} Kg7 {[%emt 0:00:09]} 19. b3 {[%emt 0:03:39]} Bc8 {[%emt 0:02:49]} 20. Bxc8 {[%emt 0:00:04]} Raxc8 {[%emt 0:00:11]} 21. Be3 {[%emt 0:03:56]} Rfe8 {[%emt 0:05:23]} 22. Rbe1 {[%emt 0:01:19]} h5 {[%emt 0:00:44]} 23. h4 {[%emt 0:00:51]} Qf3 {[%emt 0:00:33]} 24. Qd1 {[%emt 0:01:42]} Qxd1 {[%emt 0:01:48]} 25. Rxd1 {[%emt 0:00:01]} Bxg3 {[%emt 0:02:50]} 26. Bxc5 {[%emt 0:00:01]} Bh2+ {[%emt 0:07:01]} 27. Kxh2 {[%emt 0:00:13]} bxc5 {[%emt 0:00:03]} 28. Rfe1 {[%emt 0:02:40]} Kf6 {[%emt 0:01:56]} 29. Kg3 {[%emt 0:00:26]} Kf5 {[%emt 0:00:38]} 30. Rb1 {[%emt 0:03:20]} a5 {[%emt 0:00:25]} 31. f4 {[%emt 0:02:32]} Rb8 {[%emt 0:02:14]} 32. Kf3 {[%emt 0:04:28]} f6 {[%emt 0:02:10]} 33. Kg3 {[%emt 0:03:57]} a4 {[%emt 0:02:48]} 34. bxa4 {[%emt 0:00:31]} Rxb1 {[%emt 0:00:46]} 35. Rxe8 {[%emt 0:00:13]} Rb4 {[%emt 0:00:31]} 36. Re6 {[%emt 0:00:49]} Rxc4 {[%emt 0:00:36]} 37. Rxd6 {[%emt 0:00:09]} Rxa4 {[%emt 0:00:13]} 38. Rc6 {[%emt 0:00:12]} Ra3+ {[%emt 0:00:19]} 39. Kg2 {[%emt 0:00:09]} Rxa2+ {[%emt 0:00:05]} 40. Kg3 {[%emt 0:00:00]} Ra3+ {[%emt 0:00:00]} 41. Kf2 {[%emt 0:00:30]} Ra4 {[%emt 0:03:14]} 42. Rxc5 {[%emt 0:00:15]} Rxf4+ {[%emt 0:00:34]} 43. Kg3 {[%emt 0:00:07]} Rg4+ {[%emt 0:00:09]} 44. Kh3 {[%emt 0:00:15]} Rd4 {[%emt 0:00:14]} 0-1

[Event "UKR-chT 2019"]
[Site "Chornomorsk"]
[Date "2019.05.23"]
[Round "4.2"]
[White "Moiseenko, Alexander"]
[Black "Efimenko, Zahar"]
[Result "1/2-1/2"]
[ECO "E21"]
[WhiteElo "2642"]
[BlackElo "2632"]
[Annotator "RC"]
[PlyCount "45"]
[EventDate "2019.05.20"]
[EventCountry "UKR"]
[SourceTitle "playchess.com"]
[Source "ChessBase"]
[SourceQuality "1"]
[TimeControl "40/5400+30:1800+30"]

1. d4 {[%emt 0:00:00]} Nf6 {[%emt 0:00:27]} 2. c4 {[%emt 0:00:11]} e6 {[%emt 0:00:08]} 3. Nc3 {[%emt 0:00:16]} Bb4 {[%emt 0:00:09]} 4. Nf3 {[%emt 0:00:04]} b6 {[%emt 0:00:15]} 5. e3 {[%emt 0:00:17]} Bb7 {[%emt 0:00:26]} 6. Bd3 {[%emt 0:00:18]} O-O {[%emt 0:00:29]} 7. O-O {[%emt 0:00:05]} d5 {[%emt 0:00:14]} 8. cxd5 {[%emt 0:00:07]} exd5 {[%emt 0:00:15]} 9. Ne5 {[%emt 0:00:11]} Bd6 {[%emt 0:01:03]} 10. f4 {[%emt 0:00:11]} c5 {[%emt 0:00:37]} 11. g4 {[%emt 0:01:01]} Ne4 {[%emt 0:17:09]} 12. Qf3 {[%emt 0:03:38]} Nxc3 {[%emt 0:00:53]} 13. bxc3 {[%emt 0:00:03]} Nd7 {[%emt 0:00:45]} 14. g5 {[%emt 0:00:45]} Bxe5 {[%emt 0:06:22]} 15. dxe5 {[%emt 0:01:18]} Re8 {[%emt 0:00:54]} 16. c4 {[%emt 0:21:02]} Nf8 {[%emt 0:03:48]} 17. cxd5 {[%emt 0:02:18]} Bxd5 {[%emt 0:00:08]} 18. Qe2 {[%emt 0:11:51]} Rxe5 {[%emt 0:12:51]} 19. fxe5 {[%emt 0:10:45]} Qxg5+ {[%emt 0:00:16]} 20. Kf2 {[%emt 0:00:03]} Qh4+ {[%emt 0:00:52]} 21. Kg1 {[%emt 0:00:04]} Qg5+ {[%emt 0:00:14]} 22. Kf2 {[%emt 0:00:03]} Qh4+ {[%emt 0:00:06]} 23. Kg1 {[%emt 0:00:04]} 1/2-1/2

[Event "UKR-chT 2019"]
[Site "Chornomorsk"]
[Date "2019.05.23"]
[Round "4.5"]
[White "Malakhatko, Vadim"]
[Black "Omelja, Artem"]
[Result "0-1"]
[ECO "A13"]
[WhiteElo "2512"]
[BlackElo "2451"]
[Annotator "RC"]
[PlyCount "50"]
[EventDate "2019.05.20"]
[EventCountry "UKR"]
[SourceTitle "playchess.com"]
[Source "ChessBase"]
[SourceQuality "1"]
[TimeControl "40/5400+30:1800+30"]

1. Nf3 {[%emt 0:00:00]} d5 {[%emt 0:00:00]} 2. c4 {[%emt 0:00:00]} e6 {[%emt 0:00:00]} 3. g3 {[%emt 0:00:00]} Nf6 {[%emt 0:00:04]} 4. Bg2 {[%emt 0:00:00]} dxc4 {[%emt 0:00:10]} 5. Qa4+ {[%emt 0:00:00]} Nbd7 {[%emt 0:00:13]} 6. Qxc4 {[%emt 0:00:10]} a6 {[%emt 0:00:13]} 7. Qb3 {[%emt 0:00:47]} Rb8 {[%emt 0:00:14]} 8. d3 {[%emt 0:01:31]} Bd6 {[%emt 0:02:46]} 9. O-O {[%emt 0:03:11]} c5 {[%emt 0:00:46]} 10. a4 {[%emt 0:00:50]} b6 {[%emt 0:01:56]} 11. Na3 {[%emt 0:00:09]} Bb7 {[%emt 0:00:44]} 12. Nc4 {[%emt 0:00:07]} Bc7 {[%emt 0:00:19]} 13. Bd2 {[%emt 0:02:51]} O-O {[%emt 0:00:33]} 14. Rfc1 {[%emt 0:00:08]} Nd5 {[%emt 0:09:06]} 15. Qd1 {[%emt 0:00:51]} h6 {[%emt 0:02:53]} 16. Qe1 {[%emt 0:01:01]} Qe7 {[%emt 0:11:00]} 17. e4 {[%emt 0:04:40]} Nb4 {[%emt 0:00:21]} 18. Bxb4 {[%emt 0:00:06]} cxb4 {[%emt 0:00:05]} 19. d4 {[%emt 0:00:04]} Nf6 {[%emt 0:04:47]} 20. Nfe5 {[%emt 0:12:04]} Rfd8 {[%emt 0:03:24]} 21. Qe3 {[%emt 0:03:03]} b5 {[%emt 0:08:55]} 22. axb5 {[%emt 0:00:11]} axb5 {[%emt 0:00:06]} 23. Na5 {[%emt 0:00:15]} Bxe5 {[%emt 0:00:49]} 24. dxe5 {[%emt 0:03:08]} Ng4 {[%emt 0:00:09]} 25. Qc5 {[%emt 0:04:34]} Rd1+ {[%emt 0:00:30]} 0-1

[Event "UKR-chT 2019"]
[Site "Chornomorsk"]
[Date "2019.05.25"]
[Round "6.1"]
[White "Galperin, Platon"]
[Black "Onischuk, Vladimir"]
[Result "1/2-1/2"]
[ECO "B09"]
[WhiteElo "2424"]
[BlackElo "2633"]
[Annotator "ChessBase"]
[PlyCount "23"]
[EventDate "2019.05.20"]
[EventCountry "UKR"]
[SourceTitle "playchess.com"]
[Source "ChessBase"]
[SourceQuality "1"]
[TimeControl "40/5400+30:1800+30"]

1. e4 {[%emt 0:00:53]} d6 {[%emt 0:00:00]} 2. d4 {[%emt 0:00:02]} Nf6 {[%emt 0:00:00]} 3. Nc3 {[%emt 0:00:16]} g6 {[%emt 0:00:24]} 4. f4 {[%emt 0:00:05]} Bg7 {[%emt 0:00:10]} 5. Nf3 {[%emt 0:00:03]} O-O {[%emt 0:00:13]} 6. e5 {[%emt 0:01:45]} dxe5 {[%emt 0:00:13]} 7. fxe5 {[%emt 0:00:05]} Nd5 {[%emt 0:00:33]} 8. Bc4 {[%emt 0:00:32]} Nb6 {[%emt 0:02:51]} 9. Bb3 {[%emt 0:00:01]} Nc6 {[%emt 0:00:16]} 10. a4 {[%emt 0:00:02]} Na5 {[%emt 0:07:49]} 11. Ba2 {[%emt 0:00:03]} Bg4 {[%emt 0:02:26]} 12. Ne4 {[%emt 0:00:14]} 1/2-1/2

[Event "UKR-chT 2019"]
[Site "Chornomorsk"]
[Date "2019.05.25"]
[Round "6.3"]
[White "Sydoryka, Vladyslav"]
[Black "Kovchan, Alexander"]
[Result "0-1"]
[ECO "A37"]
[WhiteElo "2269"]
[BlackElo "2566"]
[Annotator "ChessBase"]
[PlyCount "106"]
[EventDate "2019.05.20"]
[EventCountry "UKR"]
[SourceTitle "playchess.com"]
[Source "ChessBase"]
[SourceQuality "1"]
[TimeControl "40/5400+30:1800+30"]

1. c4 {[%emt 0:00:02]} c5 {[%emt 0:00:00]} 2. g3 {[%emt 0:00:09]} g6 {[%emt 0:00:00]} 3. Bg2 {[%emt 0:00:06]} Bg7 {[%emt 0:00:00]} 4. Nc3 {[%emt 0:00:06]} Nc6 {[%emt 0:00:06]} 5. Nf3 {[%emt 0:00:06]} d6 {[%emt 0:00:14]} 6. a3 {[%emt 0:00:30]} e6 {[%emt 0:00:31]} 7. b4 {[%emt 0:00:24]} Nge7 {[%emt 0:00:30]} 8. Rb1 {[%emt 0:01:30]} b6 {[%emt 0:00:41]} 9. O-O {[%emt 0:02:46]} Bb7 {[%emt 0:00:11]} 10. Qc2 {[%emt 0:03:40]} Qd7 {[%emt 0:00:40]} 11. e3 {[%emt 0:05:44]} O-O {[%emt 0:01:38]} 12. d3 {[%emt 0:06:26]} Rfd8 {[%emt 0:12:45]} 13. Rd1 {[%emt 0:02:20]} Rac8 {[%emt 0:01:14]} 14. bxc5 {[%emt 0:05:15]} dxc5 {[%emt 0:01:16]} 15. Bb2 {[%emt 0:00:52]} Nf5 {[%emt 0:02:49]} 16. Ne4 {[%emt 0:03:12]} Qe7 {[%emt 0:07:27]} 17. Bxg7 {[%emt 0:02:39]} Nxg7 {[%emt 0:02:46]} 18. Qb2 {[%emt 0:02:31]} Ne8 {[%emt 0:00:27]} 19. Ne5 {[%emt 0:02:41]} f5 {[%emt 0:07:04]} 20. Nxc6 {[%emt 0:01:37]} Rxc6 {[%emt 0:04:31]} 21. Nc3 {[%emt 0:01:20]} Rcd6 {[%emt 0:00:37]} 22. d4 {[%emt 0:01:33]} Bxg2 {[%emt 0:01:37]} 23. Kxg2 {[%emt 0:00:10]} cxd4 {[%emt 0:03:18]} 24. Nb5 {[%emt 0:15:21]} R6d7 {[%emt 0:10:58]} 25. exd4 {[%emt 0:00:38]} Qf6 {[%emt 0:07:04]} 26. Qe2 {[%emt 0:04:41]} f4 {[%emt 0:11:23]} 27. Re1 {[%emt 0:14:16]} Ng7 {[%emt 0:05:36]} 28. Qf3 {[%emt 0:07:15]} g5 {[%emt 0:05:27]} 29. Re4 {[%emt 0:07:48]} Nf5 {[%emt 0:04:24]} 30. Rbe1 {[%emt 0:00:50]} a6 {[%emt 0:01:09]} 31. Rxe6 {[%emt 0:00:51]} Qf7 {[%emt 0:00:20]} 32. Qg4 {[%emt 0:01:37]} axb5 {[%emt 0:02:23]} 33. Qxg5+ {[%emt 0:00:04]} Ng7 {[%emt 0:00:29]} 34. Re7 {[%emt 0:05:37]} f3+ {[%emt 0:00:12]} 35. Kg1 {[%emt 0:00:59]} Qg6 {[%emt 0:03:28]} 36. Qxb5 {[%emt 0:00:27]} Rxe7 {[%emt 0:00:22]} 37. Rxe7 {[%emt 0:00:02]} Rxd4 {[%emt 0:00:30]} 38. h4 {[%emt 0:00:50]} Rd1+ {[%emt 0:00:33]} 39. Kh2 {[%emt 0:00:01]} Rd2 {[%emt 0:00:49]} 40. Kg1 {[%emt 0:00:00]} Qf6 {[%emt 0:00:00]} 41. Re5 {[%emt 0:04:16]} h6 {[%emt 0:06:05]} 42. Re1 {[%emt 0:04:32]} Qd4 {[%emt 0:06:55]} 43. Qd5+ {[%emt 0:00:21]} Qxd5 {[%emt 0:00:08]} 44. cxd5 {[%emt 0:00:01]} Nf5 {[%emt 0:02:43]} 45. Re6 {[%emt 0:01:12]} h5 {[%emt 0:02:40]} 46. Rxb6 {[%emt 0:01:08]} Rd1+ {[%emt 0:01:20]} 47. Kh2 {[%emt 0:00:01]} Ne3 {[%emt 0:01:35]} 48. g4 {[%emt 0:01:07]} hxg4 {[%emt 0:00:17]} 49. Rb8+ {[%emt 0:01:23]} Kf7 {[%emt 0:00:06]} 50. Kg3 {[%emt 0:00:03]} Rg1+ {[%emt 0:00:18]} 51. Kf4 {[%emt 0:00:01]} Nxd5+ {[%emt 0:00:09]} 52. Ke4 {[%emt 0:00:04]} Nf6+ {[%emt 0:00:53]} 53. Kf4 {[%emt 0:01:53]} Nh5+ {[%emt 0:00:25]} 0-1